bitfinex/quotes_ETHUSD_20240603
["timestamp","ask_amount","ask_price","bid_price","bid_amount"]
[1717412037266,0.91214321,3809.4,3808.9,2.62542]
[1717412037466,0.54505793,3809.5,3808.9,2.62542]
[1717412037680,0.91214307,3809.4,3808.9,2.62542]
[1717412037883,0.2624,3809.5,3808.9,2.62542]
[1717412038319,1.0484,3809.5,3809.0,3.0]
[1717412038484,0.2624,3809.5,3809.0,3.0]
[1717412039076,0.2624,3809.7,3809.0,3.0]
[1717412039276,0.2624,3809.4,3809.0,3.0]
[1717412039882,0.2624,3809.7,3809.0,3.0]
[1717412040568,0.2624,3809.7,3809.1,2.62528]
[1717412040692,0.2624,3809.7,3809.2,3.0]
[1717412042584,0.91209987,3809.6,3809.2,3.0]
[1717412042810,0.2624,3809.7,3809.2,3.0]
[1717412043180,0.91210696,3809.6,3809.2,3.0]
[1717412043409,0.18674874,3809.6,3809.2,3.0]
[1717412043620,0.18674874,3809.6,3808.8,3.04412016]
[1717412043820,0.91214685,3809.5,3808.8,3.04412016]
[1717412044025,0.18674874,3809.6,3808.8,3.04412016]
[1717412044382,0.91215764,3809.5,3808.9,2.62542]
[1717412044616,0.2624,3809.7,3808.9,2.62542]
[1717412044617,0.80745793,3809.7,3809.0,3.0]
[1717412044925,2.28030332,3809.6,3809.1,2.62523]
[1717412045133,0.2624,3809.7,3809.2,5.2747]
[1717412045278,0.91209239,3809.6,3809.2,5.2747]
[1717412045641,0.80745793,3809.7,3809.2,5.2747]
[1717412045783,0.91209357,3809.6,3809.2,5.2747]
[1717412045983,0.80745793,3809.7,3809.2,5.2747]
[1717412046219,0.91209377,3809.6,3809.3,2.62514]
[1717412046424,0.54505793,3809.8,3809.5,2.62501]
[1717412046654,0.81923069,3809.9,3809.5,2.62501]
[1717412046655,9.87e-06,3809.9,3809.5,2.62501]
[1717412051121,9.87e-06,3809.9,3809.7,2.62487]
[1717412051324,9.87e-06,3809.9,3809.8,3.0]
[1717412053654,0.91196217,3809.9,3809.8,3.0]
[1717412055214,2.2799102,3809.9,3809.8,3.0]
[1717412056466,2.2799102,3809.9,3809.7,2.62487]
[1717412056674,0.9119523,3809.8,3809.7,2.62487]
[1717412056818,2.2800126,3809.8,3809.3,2.62508]
[1717412057153,0.5461846,3809.6,3809.3,2.62508]
[1717412057310,3.09923342,3809.7,3809.3,2.62508]
[1717412057311,2.8261972,3809.5,3809.3,2.62508]
[1717412057515,2.8261972,3809.5,3809.0,7.28]
[1717412057516,2.2800126,3809.4,3809.0,9.90535]
[1717412057720,2.2800126,3809.3,3809.0,9.90535]
[1717412057952,0.9119523,3809.2,3809.0,9.90535]
[1717412058174,0.5461846,3809.3,3809.1,3.0]
[1717412058320,0.91213185,3809.2,3809.1,3.0]
[1717412059944,0.91210369,3809.2,3809.1,3.0]
[1717412060470,0.5461846,3809.4,3809.1,3.0]
[1717412060627,2.82637703,3809.3,3809.1,3.0]
[1717412060827,0.91207697,3809.2,3809.1,3.0]
[1717412061775,0.91209604,3809.2,3809.1,3.0]
[1717412062125,0.5461846,3809.4,3809.1,3.0]
[1717412062467,2.28019878,3809.3,3809.1,3.0]
[1717412062644,0.91209481,3809.2,3809.1,3.0]
[1717412063262,0.5461846,3809.4,3809.2,2.62522]
[1717412063436,0.5461846,3809.4,3809.3,3.0]
[1717412063639,2.82637972,3809.4,3809.3,3.0]
[1717412064754,2.28019512,3809.4,3809.3,3.0]
[1717412065274,2.82637972,3809.4,3809.3,3.0]
[1717412065634,2.28019512,3809.4,3809.3,3.0]
[1717412065832,0.91207805,3809.4,3809.3,3.0]
[1717412067870,0.5461846,3809.5,3809.4,2.62508]
[1717412068082,2.82625888,3809.5,3809.4,5.62508]
[1717412068467,2.82625868,3809.5,3809.4,5.62508]
[1717412068665,2.28007408,3809.5,3809.4,5.62508]
[1717412069268,0.5461846,3809.7,3809.4,6.433518]
[1717412069471,0.9119573,3809.6,3809.4,6.433518]
[1717412069642,0.5461846,3809.8,3809.6,2.62487]
[1717412069843,2.27984573,3809.7,3809.6,2.62487]
[1717412070990,0.5461846,3809.8,3809.6,2.62487]
[1717412071141,2.27986435,3809.7,3809.6,2.62487]
[1717412072246,2.27986435,3809.7,3809.6,3.2682008]
[1717412072984,0.91194574,3809.7,3809.6,3.2682008]
[1717412073156,0.91194574,3809.7,3809.6,2.62487]
[1717412073676,2.27984966,3809.7,3809.6,2.62487]
[1717412074242,0.91194574,3809.7,3809.6,2.62487]
[1717412075791,2.2798104,3809.7,3809.6,2.62487]
[1717412076389,0.91194574,3809.7,3809.6,2.62487]
[1717412076959,2.27980489,3809.7,3809.6,2.62487]
[1717412077159,0.91194574,3809.7,3809.6,2.62487]
[1717412077397,1.45813034,3809.7,3809.6,2.62487]
[1717412077570,2.82603847,3809.7,3809.6,2.62487]
[1717412079159,2.27985387,3809.7,3809.6,2.62487]
[1717412080285,3.09907469,3809.7,3809.6,2.62487]
[1717412081056,2.27985387,3809.7,3809.6,2.62487]
[1717412081258,3.09907469,3809.7,3809.6,2.62487]
[1717412081859,3.09909764,3809.7,3809.6,2.62487]
[1717412082295,4.10377236,3809.7,3809.6,2.62487]
[1717412083696,5.19747271,3809.7,3809.6,2.62487]
[1717412084207,4.10377236,3809.7,3809.6,2.62487]
[1717412084420,5.19747271,3809.7,3809.6,2.62487]
[1717412084708,4.10377236,3809.7,3809.6,2.62487]
[1717412085073,5.19747271,3809.7,3809.6,2.62487]
[1717412086911,4.10377236,3809.7,3809.6,2.62487]
[1717412087508,5.19747271,3809.7,3809.6,2.62487]
[1717412087717,2.91759589,3809.7,3809.6,2.62487]
[1717412087882,5.19743364,3809.7,3809.6,3.0468008]
[1717412089278,5.19743364,3809.7,3809.6,2.62487]
[1717412090218,5.19743364,3809.7,3809.6,3.41087]
[1717412093251,5.19743364,3809.7,3809.6,2.62487]
[1717412094818,5.19743364,3809.7,3809.6,5.11967]
[1717412096624,4.10373329,3809.7,3809.6,5.11967]
[1717412097642,5.19999019,3809.7,3809.6,5.11967]
[1717412100633,4.10373329,3809.7,3809.6,5.11967]
[1717412101428,5.20001549,3809.7,3809.6,5.11967]
[1717412101733,5.20001549,3809.7,3809.6,5.15168661]
[1717412101934,5.19995997,3809.7,3809.6,5.15168661]
[1717412102434,5.19995997,3809.7,3809.6,2.65688661]
[1717412102595,5.47402731,3809.7,3809.6,2.65688661]
[1717412103240,1.82389554,3809.7,3809.6,2.65688661]
[1717412103435,5.47460952,3809.7,3809.6,2.65688661]
[1717412104321,4.10387111,3809.7,3809.6,2.65688661]
[1717412105117,5.47483409,3809.7,3809.6,2.65688661]
[1717412106208,4.10387111,3809.7,3809.6,2.65688661]
[1717412106544,4.10392157,3809.7,3809.6,2.65688661]
[1717412111247,5.47566004,3809.7,3809.6,2.65688661]
[1717412111449,1.82389554,3809.7,3809.6,2.65688661]
[1717412111658,4.10373561,3809.7,3809.6,2.65688661]
[1717412116260,4.10375207,3809.7,3809.6,4.99168661]
[1717412116557,4.10375207,3809.7,3809.6,5.77768661]
[1717412116722,5.47626616,3809.7,3809.6,5.77768661]
[1717412117119,5.47626616,3809.7,3809.6,4.99168661]
[1717412117318,4.10375207,3809.7,3809.6,2.65688661]
[1717412117563,6.12873376,3809.7,3809.6,2.65688661]
[1717412117716,4.75621967,3809.7,3809.6,2.65688661]
[1717412118155,4.75639551,3809.7,3809.6,2.65688661]
[1717412118961,4.10392791,3809.7,3809.6,2.65688661]
[1717412119338,4.10392791,3809.7,3809.6,5.65688661]
[1717412119757,4.36632791,3809.7,3809.6,5.65688661]
[1717412123074,4.10380941,3809.7,3809.6,5.65688661]
[1717412123276,4.10380941,3809.7,3809.6,8.03248661]
[1717412124450,5.47651078,3809.7,3809.6,8.03248661]
[1717412125387,4.10380941,3809.7,3809.6,8.03248661]
[1717412126283,5.47651078,3809.7,3809.6,8.03248661]
[1717412127799,4.10380941,3809.7,3809.6,8.03248661]
[1717412128295,5.20187553,3809.7,3809.6,8.03248661]
[1717412128605,4.10380941,3809.7,3809.6,8.03248661]
[1717412130369,5.47615838,3809.7,3809.6,8.03248661]
[1717412130980,5.47615838,3809.7,3809.6,8.94009232]
[1717412131185,5.20167603,3809.7,3809.6,9.72609232]
[1717412131794,4.10373124,3809.7,3809.6,9.72609232]
[1717412133581,3.10324425,3809.7,3809.6,9.72609232]
[1717412133786,2.27956195,3809.7,3809.6,12.35103232]
[1717412134320,2.82839388,3809.7,3809.6,12.35103232]
[1717412136089,2.82832816,3809.7,3809.6,12.35103232]
[1717412137926,2.82832816,3809.7,3809.6,20.22573232]
[1717412140743,2.82839173,3809.7,3809.6,20.22573232]
[1717412141330,2.2795598,3809.7,3809.6,20.22573232]
[1717412142040,2.2795151,3809.7,3809.6,20.22573232]
[1717412143429,0.91180604,3809.7,3809.6,20.22573232]
[1717412143940,0.54883193,3809.8,3809.6,20.22573232]
[1717412144247,2.27951719,3809.7,3809.6,20.22573232]
[1717412144548,0.91179805,3809.7,3809.6,20.22573232]
[1717412145607,2.27952369,3809.7,3809.6,20.22573232]
[1717412146247,0.91179805,3809.7,3809.6,20.22573232]
[1717412147103,0.91179805,3809.7,3809.6,19.43973232]
[1717412147335,0.91179805,3809.7,3809.6,20.22573232]
[1717412149915,0.91179805,3809.7,3809.6,19.43973232]
[1717412150246,2.27952557,3809.7,3809.6,20.22573232]
[1717412150764,0.91179805,3809.7,3809.6,19.43973232]
[1717412151037,0.91179805,3809.7,3809.6,20.22573232]
[1717412151231,2.27954561,3809.7,3809.6,16.81479232]
[1717412151442,2.27954561,3809.7,3809.6,13.53158661]
[1717412151443,2.82837754,3809.7,3809.6,13.53158661]
[1717412151628,2.27954561,3809.7,3809.6,13.53158661]
[1717412152444,2.27954561,3809.7,3809.6,14.31758661]
[1717412152736,2.82791869,3809.7,3809.6,14.31758661]
[1717412153116,2.27954561,3809.7,3809.6,14.31758661]
[1717412153469,2.27954561,3809.7,3809.6,13.53158661]
[1717412154104,3.10295416,3809.7,3809.6,13.53158661]
[1717412155809,0.82340855,3809.7,3809.6,13.53158661]
[1717412156033,3.1032276,3809.7,3809.6,13.53158661]
[1717412157249,2.27981905,3809.7,3809.6,13.53158661]
[1717412157743,3.1032276,3809.7,3809.6,13.53158661]
[1717412162049,3.1031767,3809.7,3809.6,13.53158661]
[1717412163254,1.73531581,3809.7,3809.6,13.53158661]
[1717412163442,3.10320325,3809.7,3809.6,13.53158661]
[1717412165717,4.10370665,3809.7,3809.6,13.53158661]
[1717412166236,3.10261326,3809.7,3809.6,13.53158661]
[1717412166545,3.10261326,3809.7,3809.6,14.31758661]
[1717412169345,3.10261326,3809.7,3809.6,15.99799527]
[1717412169960,3.10250006,3809.7,3809.6,15.99799527]
[1717412171418,2.2796815,3809.7,3809.6,15.99799527]
[1717412171828,3.10250006,3809.7,3809.6,15.99799527]
[1717412172449,2.2796815,3809.7,3809.6,15.99799527]
[1717412172769,3.10250006,3809.7,3809.6,15.99799527]
[1717412173931,3.10250006,3809.7,3809.6,18.42289527]
[1717412174145,2.2796815,3809.7,3809.6,18.42289527]
[1717412175179,2.82844648,3809.7,3809.6,18.42289527]
[1717412175365,2.82844648,3809.7,3809.6,21.04783527]
[1717412175737,2.2796815,3809.7,3809.6,21.04783527]
[1717412176168,2.82844648,3809.7,3809.6,21.04783527]
[1717412176536,2.82844648,3809.7,3809.6,18.62293527]
[1717412176884,2.82824155,3809.7,3809.6,18.62293527]
[1717412177841,2.27947657,3809.7,3809.6,18.62293527]
[1717412178275,2.82824155,3809.7,3809.6,18.62293527]
[1717412181077,1.09794479,3810.1,3809.9,2.2958]
[1717412181247,1.37184626,3810.9,3810.5,2.2958]
[1717412181461,1.37184626,3811.1,3810.8,0.786]
[1717412181691,1.74221551,3811.4,3811.1,2.62385]
[1717412181692,1.37184626,3811.3,3811.1,2.62385]
[1717412181986,0.096,3811.4,3811.2,3.786]
[1717412181987,1.46784626,3811.4,3811.2,3.786]
[1717412182134,0.096,3811.4,3811.3,2.62377]
[1717412182485,1.91912599,3811.4,3811.3,5.62377]
[1717412184151,0.096,3811.4,3811.3,5.62377]
[1717412184808,1.63273153,3811.8,3811.6,2.62355]
[1717412184942,1.82302608,3811.7,3811.6,2.62355]
[1717412186174,2.44060184,3811.7,3811.3,3.0]
[1717412186382,0.096,3811.3,3811.2,2.6238]
[1717412186552,0.3584,3811.3,3811.2,2.6238]
[1717412186760,2.96769224,3811.3,3810.8,2.62407]
[1717412186976,2.25709462,3811.2,3810.9,10.8722]
[1717412187290,2.51949462,3811.2,3810.9,10.8722]
[1717412187443,1.82329224,3811.1,3810.9,10.8722]
[1717412187649,2.08569224,3811.0,3810.9,10.8722]
[1717412191051,2.45108295,3811.0,3810.9,10.8722]
[1717412191455,2.18868295,3811.0,3810.9,10.8722]
[1717412192201,2.18868295,3811.0,3810.9,10.90078014]
[1717412192566,2.18859797,3811.0,3810.9,10.90078014]
[1717412194597,1.36748707,3811.0,3810.9,10.90078014]
[1717412195397,2.18859797,3811.0,3810.9,10.90078014]
[1717412195956,1.36748707,3811.0,3810.9,10.90078014]
[1717412198208,2.18859797,3811.0,3810.9,10.90078014]
[1717412198358,1.36748707,3811.0,3810.9,10.90078014]
[1717412199478,2.18859797,3811.0,3810.9,10.90078014]
[1717412200237,1.36748707,3811.0,3810.9,10.90078014]
[1717412201307,2.27913683,3811.0,3810.9,10.90078014]
[1717412202345,2.82647901,3811.0,3810.9,10.90078014]
[1717412202550,2.82648397,3811.0,3810.9,10.90078014]
[1717412203628,2.27913683,3811.0,3810.9,10.90078014]
[1717412204148,0.54734714,3811.1,3811.0,2.62398]
[1717412204350,2.82635262,3811.1,3811.0,5.62398]
[1717412205203,2.27900548,3811.1,3811.0,5.62398]
[1717412205829,2.27900548,3811.1,3811.0,7.96818]
[1717412206233,2.82639776,3811.1,3811.0,7.96818]
[1717412206439,2.27900548,3811.1,3811.0,7.96818]
[1717412207436,0.91160219,3811.1,3811.0,7.96818]
[1717412207638,2.82640865,3811.1,3811.0,7.96818]
[1717412209704,2.82640865,3811.1,3811.0,8.75418]
[1717412210051,2.82640865,3811.1,3811.0,10.41967601]
[1717412210214,2.27901637,3811.1,3811.0,9.63367601]
[1717412212344,2.82632651,3811.1,3811.0,9.63367601]
[1717412212702,2.27893423,3811.1,3811.0,9.63367601]
[1717412213131,2.82632651,3811.1,3811.0,9.63367601]
[1717412215160,2.27893423,3811.1,3811.0,9.63367601]
[1717412215747,2.8266117,3811.1,3811.0,9.63367601]
[1717412216266,2.27893423,3811.1,3811.0,9.63367601]
[1717412216631,2.82667856,3811.1,3811.0,10.41967601]
[1717412217140,2.82667856,3811.1,3811.0,9.63367601]
[1717412219133,2.27893423,3811.1,3811.0,9.63367601]
[1717412219557,3.10004513,3811.1,3811.0,7.28947601]
[1717412219971,4.10214021,3811.1,3811.0,7.28947601]
[1717412220268,3.10080973,3811.1,3811.0,7.28947601]
[1717412221273,4.1021299,3811.1,3811.0,7.28947601]
[1717412222572,4.1021299,3811.1,3811.0,5.62398]
[1717412222743,5.19699359,3811.1,3811.0,5.62398]
[1717412223474,5.98299359,3811.1,3811.0,5.62398]
[1717412223635,4.9841299,3811.1,3811.0,5.62398]
[1717412224032,4.07276477,3811.1,3811.0,5.62398]
[1717412224263,4.9844775,3811.1,3811.0,5.62398]
[1717412225472,2.60919567,3811.1,3811.0,5.62398]
[1717412225671,4.88848497,3811.1,3811.0,5.62398]
[1717412225861,4.10248497,3811.1,3811.0,5.62398]
[1717412226950,4.36488497,3811.1,3811.0,5.62398]
[1717412227152,4.10248497,3811.1,3811.0,5.62398]
[1717412227455,4.36488497,3811.1,3811.0,5.62398]
[1717412228434,4.10248497,3811.1,3811.0,5.62398]
[1717412228670,4.36488497,3811.1,3811.0,5.62398]
[1717412229552,5.73596992,3811.1,3811.0,5.62398]
[1717412229752,4.36488497,3811.1,3811.0,5.62398]
[1717412233264,2.08559567,3811.1,3811.0,5.62398]
[1717412233598,4.36469507,3811.1,3811.0,5.62398]
[1717412242104,4.36467058,3811.1,3811.0,5.62398]
[1717412243700,4.10227058,3811.1,3811.0,5.62398]
[1717412243892,4.36457058,3811.1,3811.0,5.62398]
[1717412255430,4.93159584,3811.1,3811.0,5.62398]
[1717412255785,4.36457058,3811.1,3811.0,5.62398]
[1717412257541,5.20121831,3811.1,3811.0,3.0]
[1717412257837,0.3583,3811.0,3810.9,7.90078014]
[1717412258126,9.22717264,3811.0,3810.9,7.90078014]
[1717412258294,7.30676781,3811.0,3810.9,7.90078014]
[1717412258501,8.65413085,3811.0,3810.9,7.90078014]
[1717412258725,8.65420284,3811.0,3810.9,7.90078014]
[1717412259204,8.65471392,3811.0,3810.9,7.90078014]
[1717412259917,9.44071392,3811.0,3810.9,7.90078014]
[1717412261946,7.16112499,3811.0,3810.9,7.90078014]
[1717412262103,9.44069226,3811.0,3810.9,7.90078014]
[1717412262929,9.44069226,3811.0,3810.9,7.63838014]
[1717412265646,9.34469226,3811.0,3810.9,7.63838014]
[1717412265968,9.34469226,3811.0,3810.9,7.37598014]
[1717412268337,10.914448,3811.0,3810.9,7.37598014]
[1717412268864,9.34469226,3811.0,3810.9,7.37598014]
[1717412269659,11.96867226,3811.0,3810.9,7.37598014]
[1717412271881,11.18267226,3811.0,3810.9,7.37598014]
[1717412272091,11.96867226,3811.0,3810.9,7.11358014]
[1717412272382,13.53846828,3811.0,3810.9,7.11358014]
[1717412273040,12.75247003,3811.0,3810.9,7.11358014]
[1717412273382,13.53847003,3811.0,3810.9,7.11358014]
[1717412273738,13.61322016,3811.0,3810.9,7.11358014]
[1717412274937,13.61322016,3811.0,3810.9,6.85118014]
[1717412276185,13.53847003,3811.0,3810.9,6.85118014]
[1717412276760,11.96866691,3811.0,3810.9,6.85118014]
[1717412278115,11.96866691,3811.0,3810.9,6.58878014]
[1717412278621,15.18309369,3811.0,3810.9,6.58878014]
[1717412280529,13.04608728,3811.0,3810.9,6.58878014]
[1717412280735,15.18301426,3811.0,3810.9,6.58878014]
[1717412281308,7.21121397,3811.0,3810.9,6.32638014]
[1717412281670,7.21108133,3811.0,3810.9,6.32638014]
[1717412281875,4.66964302,3811.0,3810.9,6.32638014]
[1717412282074,4.10253823,3811.0,3810.9,6.3522301]
[1717412283901,5.47311789,3811.0,3810.9,8.6644301]
[1717412284225,2.27934256,3811.0,3810.9,11.6644301]
[1717412284508,2.82761567,3811.0,3810.9,11.6644301]
[1717412285274,2.82761567,3811.0,3810.9,12.4504301]
[1717412286399,2.27934256,3811.0,3810.9,12.4504301]
[1717412286967,2.27934256,3811.0,3810.9,13.95788511]
[1717412288109,0.54827311,3811.1,3811.0,2.62398]
[1717412288320,2.27883185,3811.1,3811.0,8.09758]
[1717412288615,0.54827311,3811.4,3811.0,8.09758]
[1717412288923,2.27867426,3811.3,3811.2,5.09744]
[1717412289077,0.9114697,3811.3,3811.2,8.09744]
[1717412290013,0.21947311,3811.5,3811.4,2.6237]
[1717412290185,1.09648073,3811.9,3811.8,2.62343]
[1717412290186,0.82236055,3811.9,3811.8,2.62343]
[1717412290373,1.36709744,3811.9,3811.8,5.07953]
[1717412290573,1.36709744,3811.9,3811.8,8.07953]
[1717412294630,1.08466055,3812.1,3811.8,8.07953]
[1717412294921,1.36713886,3812.0,3811.8,8.07953]
[1717412295222,1.08466055,3812.2,3811.8,8.07953]
[1717412295423,1.36710599,3812.1,3811.8,8.07953]
[1717412295619,1.36710599,3812.0,3811.8,8.07953]
[1717412295914,1.08466055,3812.2,3811.8,8.07953]
[1717412296118,1.08466055,3812.2,3811.8,5.62343]
[1717412296428,1.36710526,3812.1,3812.0,2.62329]
[1717412297294,1.08466055,3812.4,3812.0,2.62329]
[1717412297691,1.6293674,3812.3,3812.0,2.62329]
[1717412298016,1.3670674,3812.2,3812.0,3.497009]
[1717412298184,0.82236055,3812.5,3812.2,5.07355]
[1717412298384,1.36705847,3812.4,3812.2,5.07355]
[1717412298586,0.786,3812.3,3812.2,2.62315]
[1717412298822,1.0483,3812.3,3812.2,2.62315]
[1717412299187,3.23780195,3812.3,3812.2,2.62315]
[1717412299503,3.23780195,3812.3,3812.2,2.36075]
[1717412299682,2.45180195,3812.3,3812.2,2.36075]
[1717412300888,2.89483022,3812.3,3812.2,2.36075]
[1717412302228,2.07246967,3812.3,3812.2,2.36075]
[1717412302543,2.17598766,3812.3,3812.2,2.36075]
[1717412303408,1.6294414,3812.3,3812.2,2.36075]
[1717412304537,2.45180195,3812.3,3812.2,2.36075]
[1717412305097,3.23780195,3812.3,3811.8,2.62338]
[1717412305440,0.80850796,3812.1,3811.8,2.62338]
[1717412305642,0.2623,3811.9,3811.8,2.62338]
[1717412305800,1.6294414,3811.9,3811.8,5.62338]
[1717412306432,1.6294414,3811.9,3811.8,3.0]
[1717412306632,2.51879318,3811.9,3811.4,3.0]
[1717412306813,2.17564936,3811.8,3811.4,3.0]
[1717412307014,1.36730045,3811.7,3811.4,3.0]
[1717412307336,0.54620796,3811.7,3811.4,3.0]
[1717412309309,0.2623,3811.6,3811.4,3.0]
[1717412311327,1.1738404,3811.5,3811.4,3.0]
[1717412312354,0.2623,3811.5,3811.4,3.0]
[1717412312672,1.1738301,3811.5,3811.4,3.0]
[1717412313254,0.3583,3811.4,3810.9,8.9762101]
[1717412313469,0.786,3811.2,3810.9,8.9762101]
[1717412313748,0.54651905,3811.0,3810.9,8.9762101]
[1717412313943,2.82581765,3811.0,3810.9,8.9762101]
[1717412314126,0.54651905,3811.1,3810.9,8.9762101]
[1717412314325,1.60836055,3811.2,3810.9,8.9762101]
[1717412314326,2.82581282,3811.0,3810.9,8.9762101]
[1717412314625,3.08811282,3811.0,3810.9,11.9762101]
[1717412315047,3.08811353,3811.0,3810.9,11.9762101]
[1717412315256,3.08811353,3811.0,3810.9,9.3522301]
[1717412315464,3.87411353,3811.0,3810.9,6.3522301]
[1717412315668,3.08811353,3811.0,3810.9,6.3522301]
[1717412315864,4.94438884,3811.0,3810.9,6.3522301]
[1717412316027,5.73038884,3811.0,3810.9,6.3522301]
[1717412316742,6.29750164,3811.0,3810.9,6.3522301]
[1717412317148,5.73038884,3811.0,3810.9,6.3522301]
[1717412317528,7.09682177,3811.0,3810.9,6.0898301]
[1717412318227,5.73038884,3811.0,3810.9,6.0898301]
[1717412318441,7.09682177,3811.0,3810.9,6.0898301]
[1717412319137,5.73038884,3811.0,3810.9,6.0898301]
[1717412319339,7.09682177,3811.0,3810.9,6.0898301]
[1717412319563,5.82638884,3811.0,3810.9,6.0898301]
[1717412320651,5.82638884,3811.0,3810.9,5.8274301]
[1717412321637,6.39355169,3811.0,3810.9,4.3684107]
[1717412321836,7.96309847,3811.0,3810.9,4.3684107]
[1717412322077,9.60281798,3811.0,3810.9,4.3684107]
[1717412322235,6.39355169,3811.0,3810.9,4.3684107]
[1717412322839,8.03271996,3811.0,3810.9,4.3684107]
[1717412323144,9.60198631,3811.0,3810.9,4.3684107]
[1717412323548,9.60198631,3811.0,3810.9,4.1060107]
[1717412324135,6.39355169,3811.0,3810.9,4.1060107]
[1717412325034,5.82638884,3811.0,3810.9,4.1060107]
[1717412325538,5.82682652,3811.0,3810.9,4.1060107]
[1717412326772,5.82682652,3811.0,3810.9,3.8436107]
[1717412327077,5.82683912,3811.0,3810.9,3.8436107]
[1717412328983,4.1191311,3811.0,3810.9,3.8436107]
[1717412329187,4.3814311,3811.0,3810.9,3.8436107]
[1717412329783,4.3814311,3811.0,3810.9,3.5812107]
[1717412331184,5.74608303,3811.0,3810.9,3.5812107]
[1717412331691,4.94861885,3811.0,3810.9,3.5812107]
[1717412331901,6.51823433,3811.0,3810.9,3.5812107]
[1717412332755,6.51823433,3811.0,3810.9,1.37336308]
[1717412332756,4.94861885,3811.0,3810.9,1.37336308]
[1717412333158,4.94861885,3811.0,3810.9,1.11066308]
[1717412333367,4.94861885,3811.0,3810.9,0.84796308]
[1717412333651,4.94861885,3811.0,3810.9,0.58536308]
[1717412333869,4.94861885,3811.0,3810.9,0.32266308]
[1717412334082,6.51834663,3811.0,3810.9,0.05996308]
[1717412334293,4.94861885,3811.0,3810.9,0.05996308]
[1717412335894,0.2623,3810.6,3809.9,2.25976308]
[1717412336104,0.2623,3810.2,3810.0,0.95397631]
[1717412337259,0.2623,3810.3,3810.0,0.95397631]
[1717412338296,0.2623,3810.4,3810.0,0.95397631]
[1717412338469,0.2623,3810.2,3810.0,0.95397631]
[1717412338891,0.2623,3810.2,3810.1,2.4298]
[1717412339458,0.2623,3810.4,3810.1,2.4298]
[1717412339658,0.2623,3810.2,3810.1,2.4298]
[1717412340775,0.2623,3810.4,3810.1,2.4298]
[1717412344162,0.2623,3810.2,3810.1,2.4298]
[1717412345315,0.2623,3810.4,3810.1,2.4298]
[1717412345519,0.2623,3810.2,3810.1,2.4298]
[1717412346786,0.2623,3810.3,3810.1,2.4298]
[1717412347691,1.17417797,3810.2,3810.1,2.4298]
[1717412348088,0.2623,3810.2,3810.1,2.4298]
[1717412348717,0.2623,3810.3,3810.1,2.4298]
[1717412349074,2.54204062,3810.2,3810.1,2.4298]
[1717412349279,1.17419625,3810.2,3810.1,2.4298]
[1717412349517,3.08768381,3810.2,3810.1,2.935255]
[1717412349676,2.54205697,3810.2,3810.1,2.935255]
[1717412350025,0.2623,3810.2,3810.1,2.935255]
[1717412350425,0.2623,3810.3,3810.2,2.62453]
[1717412350610,2.54189453,3810.3,3810.2,5.03943]
[1717412350815,2.27959453,3810.3,3810.2,8.6740085]
[1717412350985,0.91183781,3810.3,3810.2,8.6740085]
[1717412351402,0.54562684,3810.5,3810.2,8.6740085]
[1717412351605,0.91180675,3810.4,3810.3,2.4149]
[1717412352324,2.27951534,3810.4,3810.3,2.4149]
[1717412353320,2.82514218,3810.4,3810.2,5.62453]
[1717412353526,2.82514218,3810.3,3810.2,5.62453]
[1717412353851,2.54181534,3810.3,3810.2,5.62453]
[1717412354214,3.3602556,3810.3,3810.2,5.62453]
[1717412355098,4.36559208,3810.3,3810.2,5.62453]
[1717412356128,5.45684576,3810.3,3810.2,5.62453]
[1717412357397,4.36559208,3810.3,3810.2,5.62453]
[1717412358310,5.730873,3810.3,3810.2,5.62453]
[1717412359143,4.36559208,3810.3,3810.2,5.62453]
[1717412359343,4.36559208,3810.3,3810.2,3.0]
[1717412359705,4.36559208,3810.3,3810.0,5.4149]
[1717412359905,5.73700194,3810.2,3810.0,5.4149]
[1717412360142,4.10329208,3810.1,3810.0,5.4149]
[1717412360734,5.47470194,3810.1,3810.0,5.4149]
[1717412361259,5.47529851,3810.1,3810.0,5.4149]
[1717412361816,4.10353379,3810.1,3810.0,5.4149]
[1717412362604,1.82377674,3810.1,3810.0,5.4149]
[1717412362943,5.47573718,3810.1,3810.0,5.4149]
[1717412365749,4.10348845,3810.1,3810.0,5.4149]
[1717412366122,4.10348845,3810.1,3810.0,5.1525]
[1717412366324,4.36578845,3810.1,3810.0,3.0]
[1717412366519,4.36578845,3810.1,3809.7,3.0]
[1717412366847,0.2623,3809.8,3809.7,3.0]
[1717412367025,4.36578845,3809.8,3809.7,3.0]
[1717412368264,5.46382168,3809.8,3809.7,3.0]
[1717412369360,5.46382168,3809.8,3809.7,5.4184]
[1717412369720,4.36578845,3809.8,3809.7,5.4184]
[1717412370831,5.73828573,3809.8,3809.7,5.4184]
[1717412372266,5.73828573,3809.8,3809.7,5.46947549]
[1717412372758,4.36578845,3809.8,3809.7,5.46947549]
[1717412378137,5.73828573,3809.8,3809.7,5.46947549]
[1717412379662,5.73846133,3809.8,3809.7,5.46947549]
[1717412380330,5.70328814,3809.8,3809.7,5.46947549]
[1717412383526,5.70328814,3809.8,3809.7,3.05107549]
[1717412387763,4.33080072,3809.8,3809.7,3.05107549]
[1717412388127,5.70328814,3809.8,3809.7,3.05107549]
[1717412388329,4.33080072,3809.8,3809.7,3.05107549]
[1717412389373,4.33080072,3809.8,3809.7,3.03597019]
[1717412391579,4.33080072,3809.8,3809.7,5.30207019]
[1717412397452,4.33080072,3809.8,3809.7,3.03597019]
[1717412397665,5.70328814,3809.8,3809.7,3.03597019]
[1717412400157,4.33080072,3809.8,3809.7,3.03597019]
[1717412400484,5.70368475,3809.8,3809.7,3.03597019]
[1717412401240,4.33080072,3809.8,3809.7,3.03597019]
[1717412403756,5.70372622,3809.8,3809.7,3.03597019]
[1717412404291,4.33080072,3809.8,3809.7,3.03597019]
[1717412405384,5.70377128,3809.8,3809.7,3.03597019]
[1717412408269,4.33080072,3809.8,3809.7,3.03597019]
[1717412409336,4.10367391,3809.8,3809.7,5.33327019]
[1717412409639,5.2023835,3809.8,3809.7,6.20769021]
[1717412409938,3.1038824,3809.8,3809.7,6.99369021]
[1717412410143,2.27989735,3809.8,3809.7,6.99369021]
[1717412410312,2.82914838,3809.8,3809.7,6.99369021]
[1717412410712,2.27989735,3809.8,3809.7,6.99369021]
[1717412411311,0.91195894,3809.8,3809.7,6.99369021]
[1717412411705,2.27964448,3809.8,3809.7,6.99369021]
[1717412412433,0.91195894,3809.8,3809.7,6.99369021]
[1717412413120,2.27963924,3809.8,3809.7,6.99369021]
[1717412413366,0.91195894,3809.8,3809.7,6.99369021]